[Event "1st Turkish League 2017"]
[Site "Konya"]
[Date "2017.07.21"]
[Round "7"]
[White "Kucuk, Dogan"]
[Black "Erturan, Yakup"]
[Result "0-1"]
[ECO "B15"]
[WhiteElo "2048"]
[BlackElo "2371"]
[Annotator "NA"]
[PlyCount "212"]
[EventType "team-tourn"]
[EventCountry "TUR"]
[SourceTitle "playchess.com"]
[Source "ChessBase"]
[SourceQuality "1"]
[TimeControl "5400+30"]

1. e4 {[%emt 0:00:30]} g6 {[%emt 0:01:00]} 2. Nc3 {[%emt 0:00:30]} Bg7 {[%emt 0:00:30]} 3. d4 {[%emt 0:01:30]} c6 {[%emt 0:03:30]} 4. Nf3 {[%emt 0:01:30]} d5 {[%emt 0:05:30]} 5. h3 {[%emt 0:02:30]} dxe4 {[%emt 0:03:30]} 6. Nxe4 {[%emt 0:00:30]} Nd7 {[%emt 0:01:30]} 7. Bc4 {[%emt 0:04:30]} Ngf6 {[%emt 0:03:30]} 8. Nxf6+ {[%emt 0:01:30]} Nxf6 {[%emt 0:00:30]} 9. O-O {[%emt 0:00:30]} O-O {[%emt 0:00:30]} 10. c3 {[%emt 0:01:30]} Bf5 {[%emt 0:05:30]} 11. Re1 {[%emt 0:08:30]} Qc7 {[%emt 0:05:30] LiveBook: 3 Games} 12. Ne5 $16 {[%emt 0:04:30]} Nd5 {[%emt 0:00:30]} 13. Bxd5 {[%emt 0:04:30]} cxd5 {[%emt 0:00:30]} 14. Qb3 {[%emt 0:00:30]} Be6 {[%emt 0:15:30]} 15. Bf4 {[%emt 0:03:30]} Qc8 {[%emt 0:00:30]} 16. Re2 {[%emt 0:05:30]} b6 {[%emt 0:05:30]} 17. Rae1 {[%emt 0:02:30]} Qb7 {[%emt 0:01:30]} 18. Nf3 {[%emt 0:12:30]} Rfe8 {[%emt 0:01:30]} 19. Be5 {[%emt 0:05:30]} Bf8 {[%emt 0:01:30]} 20. Nd2 {[%emt 0:03:30]} Qd7 {[%emt 0:07:30]} 21. Bg3 {[%emt 0:02:30]} Bf5 {[%emt 0:00:30]} 22. Nf3 {[%emt 0:02:30]} Rac8 {[%emt 0:05:30]} 23. Rd2 {[%emt 0:03:30]} f6 {[%emt 0:01:30]} 24. Nh4 {[%emt 0:04:30]} Be6 {[%emt 0:00:30]} 25. Qd1 {[%emt 0:01:30]} Bf7 {[%emt 0:02:30]} 26. Qg4 {[%emt 0:01:30]} e6 {[%emt 0:00:30]} 27. Qe2 {[%emt 0:02:41]} b5 {[%emt 0:00:30]} 28. Rc2 {[%emt 0:03:12]} Rc4 {[%emt 0:04:30]} 29. Nf3 {[%emt 0:01:08]} Rec8 {[%emt 0:02:30]} 30. a3 {[%emt 0:00:53]} a5 {[%emt 0:01:30]} 31. Bf4 {[%emt 0:04:06]} b4 {[%emt 0:00:30]} 32. axb4 {[%emt 0:00:26]} axb4 {[%emt 0:00:30]} 33. Bd2 {[%emt 0:00:08]} bxc3 {[%emt 0:06:14]} 34. Bxc3 {[%emt 0:00:58]} Bb4 {[%emt 0:00:30]} 35. Rec1 {[%emt 0:03:19]} Qc7 {[%emt 0:01:20]} 36. Nd2 {[%emt 0:00:28]} Rc6 {[%emt 0:00:06]} 37. Qf3 {[%emt 0:01:14]} Be7 {[%emt 0:02:49]} 38. Nb3 {[%emt 0:00:27]} Qb8 {[%emt 0:03:30]} 39. Nc5 {[%emt 0:01:51]} e5 {[%emt 0:01:16]} 40. b4 {[%emt 0:04:03]} exd4 {[%emt 0:00:58]} 41. Bd2 {[%emt 0:00:14]} Qb5 {[%emt 0:02:33]} 42. Re1 {[%emt 0:00:44]} Bf8 {[%emt 0:00:39]} 43. Qf4 {[%emt 0:00:52]} d3 {[%emt 0:01:57]} 44. Rcc1 {[%emt 0:00:01]} Bg7 {[%emt 0:01:35]} 45. Qd4 {[%emt 0:01:00]} f5 {[%emt 0:00:29]} 46. Qxd3 {[%emt 0:00:13]} Qxd3 {[%emt 0:00:30]} 47. Nxd3 {[%emt 0:00:00]} Rxc1 {[%emt 0:00:36]} 48. Rxc1 {[%emt 0:00:00]} Rxc1+ {[%emt 0:00:01]} 49. Nxc1 {[%emt 0:00:07]} Kf8 {[%emt 0:00:50]} 50. Kf1 {[%emt 0:00:30]} Ke7 {[%emt 0:00:13]} 51. Ke2 {[%emt 0:00:30]} Kd6 {[%emt 0:00:30]} 52. Kd3 {[%emt 0:00:00]} Be8 {[%emt 0:00:00]} 53. Bf4+ {[%emt 0:01:11]} Ke6 {[%emt 0:00:11]} 54. Ne2 {[%emt 0:00:45]} Bb5+ {[%emt 0:01:06]} 55. Ke3 {[%emt 0:00:30]} Bc4 {[%emt 0:00:00]} 56. g3 {[%emt 0:00:19]} Bb2 {[%emt 0:00:08]} 57. Nd4+ {[%emt 0:00:15]} Kd7 {[%emt 0:00:17]} 58. Be5 {[%emt 0:00:34]} Bc3 {[%emt 0:02:08]} 59. b5 {[%emt 0:00:30]} Bxb5 {[%emt 0:00:32]} 60. Nf3 {[%emt 0:01:31]} Bb4 {[%emt 0:00:58]} 61. Ng5 {[%emt 0:00:53]} h6 {[%emt 0:00:35]} 62. Nf3 {[%emt 0:00:30]} Ba3 {[%emt 0:00:07]} 63. Kd2 {[%emt 0:00:57]} Ba4 {[%emt 0:01:27]} 64. Bg7 {[%emt 0:00:25]} h5 {[%emt 0:00:04]} 65. Bd4 {[%emt 0:01:37]} Ke6 {[%emt 0:00:30]} 66. Ng5+ {[%emt 0:00:00]} Ke7 {[%emt 0:00:24]} 67. Nf3 {[%emt 0:00:27]} f4 {[%emt 0:00:09]} 68. gxf4 {[%emt 0:00:53]} Ke6 {[%emt 0:00:40]} 69. Be5 {[%emt 0:00:44]} Bc5 {[%emt 0:01:21]} 70. Nd4+ {[%emt 0:00:30]} Kf7 {[%emt 0:00:00]} 71. h4 {[%emt 0:00:20]} Bd7 {[%emt 0:00:22]} 72. Kd3 {[%emt 0:00:23]} Bg4 {[%emt 0:00:17]} 73. f3 {[%emt 0:01:55]} Bd7 {[%emt 0:00:08]} 74. f5 {[%emt 0:00:15]} Bxf5+ {[%emt 0:01:02]} 75. Ke3 {[%emt 0:00:42]} Bb1 {[%emt 0:00:30]} 76. Bf4 {[%emt 0:00:00]} Ke7 {[%emt 0:00:10]} 77. Bg5+ {[%emt 0:00:12]} Kd7 {[%emt 0:00:26]} 78. Bf4 {[%emt 0:00:40]} Be7 {[%emt 0:00:20]} 79. Bg3 {[%emt 0:00:30]} Bf6 {[%emt 0:00:12]} 80. Ne2 {[%emt 0:00:00]} Kc6 {[%emt 0:00:15]} 81. Bf2 {[%emt 0:00:52]} Kc5 {[%emt 0:00:22]} 82. Bg3 {[%emt 0:00:36]} Kc4 {[%emt 0:00:30]} 83. Kd2 {[%emt 0:00:11]} Bf5 {[%emt 0:01:56]} 84. Bf2 {[%emt 0:00:05]} d4 {[%emt 0:00:00]} 85. Nf4 {[%emt 0:01:01]} d3 {[%emt 0:00:17]} 86. Ng2 {[%emt 0:00:11]} Bc3+ {[%emt 0:00:25]} 87. Kd1 {[%emt 0:00:02]} Kb3 {[%emt 0:01:11]} 88. Ne3 {[%emt 0:00:29]} Be6 {[%emt 0:00:07]} 89. Nf1 {[%emt 0:00:35]} Bd5 {[%emt 0:01:38]} 90. Nd2+ {[%emt 0:00:01]} Kb4 {[%emt 0:00:17]} 91. Be3 {[%emt 0:00:12]} Kb5 {[%emt 0:00:10]} 92. f4 {[%emt 0:00:34]} Kc6 {[%emt 0:00:15]} 93. Nf1 {[%emt 0:00:08]} Bf3+ {[%emt 0:00:34]} 94. Kc1 {[%emt 0:00:03]} Be1 {[%emt 0:00:31]} 95. f5 {[%emt 0:01:13]} gxf5 {[%emt 0:00:07]} 96. Bg5 {[%emt 0:00:02]} Kd7 {[%emt 0:00:34]} 97. Kb2 {[%emt 0:00:29]} Ke6 {[%emt 0:00:36]} 98. Nd2 {[%emt 0:00:15]} Be4 {[%emt 0:00:39]} 99. Nc4 {[%emt 0:00:50]} Bd5 {[%emt 0:00:37]} 100. Ne3 {[%emt 0:00:37]} Ke5 {[%emt 0:00:23]} 101. Nd1 {[%emt 0:00:55]} f4 {[%emt 0:00:23]} 102. Nc3 {[%emt 0:00:35]} f3 {[%emt 0:00:43]} 103. Nd1 {[%emt 0:00:28]} f2 {[%emt 0:00:29]} 104. Ne3 {[%emt 0:00:31]} Be6 {[%emt 0:00:08]} 105. Nf1 {[%emt 0:00:35]} Bh3 {[%emt 0:00:11]} 106. Ne3 {[%emt 0:00:07]} f1=Q {[%emt 0:00:15]} 0-1

[Event "1st Turkish League 2017"]
[Site "Konya"]
[Date "2017.07.21"]
[Round "7"]
[White "Guncan, Berke"]
[Black "Kilic, Efe Mert"]
[Result "0-1"]
[ECO "C49"]
[WhiteElo "2043"]
[BlackElo "2287"]
[Annotator "NA"]
[PlyCount "102"]
[EventType "team-tourn"]
[EventCountry "TUR"]
[SourceTitle "playchess.com"]
[Source "ChessBase"]
[SourceQuality "1"]
[TimeControl "5400+30"]

1. e4 {[%emt 0:00:30]} e5 {[%emt 0:01:00]} 2. Nf3 {[%emt 0:00:30]} Nc6 {[%emt 0:00:00]} 3. Nc3 {[%emt 0:00:30]} Nf6 {[%emt 0:00:00]} 4. Bb5 {[%emt 0:00:30]} Bb4 {[%emt 0:00:30]} 5. O-O {[%emt 0:00:00]} O-O {[%emt 0:00:30]} 6. d3 {[%emt 0:00:00] LiveBook: 1460 Games} Bxc3 {[%emt 0:01:30]} 7. bxc3 {[%emt 0:00:30]} d6 {[%emt 0:00:00]} 8. Bg5 {[%emt 0:00:00]} Qe7 {[%emt 0:00:00]} 9. Re1 {[%emt 0:00:00]} Bg4 {[%emt 0:04:30]} 10. h3 {[%emt 0:16:30]} Bxf3 {[%emt 0:05:30]} 11. Qxf3 {[%emt 0:00:00]} Nd8 {[%emt 0:00:30]} 12. d4 {[%emt 0:06:00]} Ne6 {[%emt 0:00:30]} 13. Be3 {[%emt 0:01:30]} c5 {[%emt 0:00:30]} 14. dxe5 {[%emt 0:00:30]} dxe5 {[%emt 0:01:30]} 15. Bc4 {[%emt 0:00:30]} Nc7 $14 {[%emt 0:09:30]} 16. Bg5 {[%emt 0:08:30]} b5 {[%emt 0:03:30]} 17. Bd5 {[%emt 0:00:30]} Ncxd5 {[%emt 0:10:30]} 18. exd5 {[%emt 0:00:30]} Rad8 {[%emt 0:00:00]} 19. Rad1 {[%emt 0:01:30]} Rfe8 {[%emt 0:06:00]} 20. Re4 {[%emt 0:18:30]} Qd6 {[%emt 0:05:30]} 21. Bxf6 {[%emt 0:01:30]} Qxf6 {[%emt 0:00:30]} 22. Qxf6 {[%emt 0:01:30]} gxf6 {[%emt 0:00:00]} 23. c4 {[%emt 0:01:30]} b4 {[%emt 0:01:00]} 24. f4 {[%emt 0:06:30]} exf4 {[%emt 0:01:30]} 25. Rxe8+ {[%emt 0:00:30]} Rxe8 {[%emt 0:00:30]} 26. Kf2 {[%emt 0:00:30]} Kf8 {[%emt 0:00:30]} 27. d6 {[%emt 0:00:30]} Rd8 {[%emt 0:00:30]} 28. Kf3 {[%emt 0:00:30]} Ke8 {[%emt 0:00:30]} 29. Ke4 {[%emt 0:03:30]} Kd7 {[%emt 0:00:30]} 30. Kd5 {[%emt 0:00:30]} Rg8 {[%emt 0:00:30]} 31. Kxc5 {[%emt 0:01:30]} Rxg2 {[%emt 0:00:30]} 32. Kxb4 {[%emt 0:01:30]} Rxc2 {[%emt 0:02:30]} 33. a4 {[%emt 0:02:30]} f3 {[%emt 0:01:30]} 34. c5 {[%emt 0:00:30]} a6 {[%emt 0:03:30]} 35. Rf1 {[%emt 0:01:30]} f2 {[%emt 0:00:30]} 36. Rd1 {[%emt 0:02:30]} Rd2 {[%emt 0:03:30]} 37. Rf1 {[%emt 0:01:30]} Kc6 {[%emt 0:03:30]} 38. Kc3 {[%emt 0:01:30]} Rd5 {[%emt 0:00:30]} 39. Rxf2 {[%emt 0:00:30]} Rxc5+ {[%emt 0:00:30]} 40. Kb3 {[%emt 0:00:30]} f5 {[%emt 0:00:30]} 41. Rd2 {[%emt 0:00:30]} Kd7 {[%emt 0:00:30]} 42. Kb4 {[%emt 0:00:30]} Re5 {[%emt 0:00:30]} 43. Rg2 f4 {[%emt 0:01:30]} 44. Kc3 {[%emt 0:06:14]} f3 {[%emt 0:00:30]} 45. Rf2 {[%emt 0:01:05]} Rf5 {[%emt 0:00:30]} 46. Kd3 {[%emt 0:00:26]} Kxd6 {[%emt 0:00:30]} 47. Ke4 {[%emt 0:00:30]} Ke6 {[%emt 0:00:30]} 48. Kd4 {[%emt 0:00:50]} Rf4+ {[%emt 0:00:30]} 49. Kc5 {[%emt 0:00:30]} Ke5 {[%emt 0:00:30]} 50. a5 {[%emt 0:00:12]} Ke4 {[%emt 0:00:30]} 51. Kb6 {[%emt 0:00:02]} Rf6+ {[%emt 0:00:00]} 0-1

[Event "1st Turkish League 2017"]
[Site "Konya"]
[Date "2017.07.21"]
[Round "7"]
[White "Okus, Melih"]
[Black "Baylav, Can"]
[Result "0-1"]
[ECO "B22"]
[WhiteElo "2041"]
[BlackElo "2001"]
[Annotator "NA"]
[PlyCount "118"]
[EventType "team-tourn"]
[EventCountry "TUR"]
[SourceTitle "playchess.com"]
[Source "ChessBase"]
[SourceQuality "1"]
[TimeControl "5400+30"]

1. e4 {[%emt 0:00:30]} c5 {[%emt 0:01:00]} 2. c3 {[%emt 0:00:30]} d5 {[%emt 0:00:30]} 3. exd5 {[%emt 0:00:30]} Qxd5 {[%emt 0:00:30]} 4. d4 {[%emt 0:00:30]} Nf6 {[%emt 0:00:00]} 5. Nf3 {[%emt 0:00:00]} Bg4 {[%emt 0:00:00]} 6. Nbd2 {[%emt 0:00:00] LiveBook: 212 Games} e6 {[%emt 0:03:30]} 7. Bc4 {[%emt 0:04:30]} Qd7 {[%emt 0:14:30]} 8. Qb3 $11 {[%emt 0:00:30]} (8. h3 $5 {[%cal Rh3g4]} Bxf3 9. Nxf3 $14) 8... Bd6 {[%emt 0:01:30]} 9. Ne5 {[%emt 0:12:30]} Qc7 {[%emt 0:06:30]} 10. Nxg4 {[%emt 0:00:30]} Nxg4 {[%emt 0:00:00]} 11. Ne4 {[%emt 0:00:30]} O-O {[%emt 0:23:00]} 12. h3 {[%emt 0:06:30]} Nf6 {[%emt 0:01:30]} 13. Nxf6+ {[%emt 0:02:30]} gxf6 {[%emt 0:00:30]} 14. Bh6 {[%emt 0:01:30]} Re8 {[%emt 0:00:30]} 15. O-O {[%emt 0:15:30]} Kh8 {[%emt 0:04:30]} 16. d5 {[%emt 0:02:30]} e5 {[%emt 0:02:30]} 17. Qd1 {[%emt 0:00:30]} Nd7 {[%emt 0:05:30]} 18. Qh5 {[%emt 0:02:30]} Nb6 {[%emt 0:01:30]} 19. Qh4 {[%emt 0:01:30]} Be7 {[%emt 0:24:21]} 20. d6 {[%emt 0:08:30]} Qxd6 {[%emt 0:00:57]} 21. Bxf7 {[%emt 0:00:00]} Qc6 {[%emt 0:01:25]} 22. Bxe8 {[%emt 0:05:00]} Rxe8 {[%emt 0:00:30]} 23. f3 {[%emt 0:00:00]} Rg8 {[%emt 0:03:25]} 24. Qe4 {[%emt 0:00:00]} Qe6 {[%emt 0:00:13]} 25. Kh1 {[%emt 0:09:30]} f5 {[%emt 0:01:46]} 26. Qxb7 {[%emt 0:00:30]} f4 {[%emt 0:00:35]} 27. Bxf4 {[%emt 0:10:11]} exf4 {[%emt 0:00:49]} 28. Rae1 {[%emt 0:00:30]} Qg6 {[%emt 0:00:30]} 29. Rg1 {[%emt 0:00:30]} Bh4 {[%emt 0:00:30]} 30. Re4 {[%emt 0:01:38]} Bf2 {[%emt 0:00:18]} 31. Rxf4 {[%emt 0:01:05]} Bxg1 {[%emt 0:00:15]} 32. Rg4 {[%emt 0:00:03]} Qb1 {[%emt 0:00:01]} 33. Rxg8+ {[%emt 0:02:36]} Kxg8 {[%emt 0:00:30]} 34. Qb8+ {[%emt 0:00:00]} Kf7 {[%emt 0:00:29]} 35. Qxa7+ {[%emt 0:00:52]} Ke8 {[%emt 0:00:00]} 36. Qb8+ {[%emt 0:02:48]} Ke7 {[%emt 0:00:01]} 37. Qb7+ {[%emt 0:02:47]} Nd7 {[%emt 0:00:30]} 38. Qe4+ {[%emt 0:00:00]} Qxe4 {[%emt 0:00:00]} 39. fxe4 {[%emt 0:00:00]} Be3 {[%emt 0:00:00]} 40. g4 {[%emt 0:00:54]} Bc1 {[%emt 0:00:02]} 41. b3 {[%emt 0:00:40]} Nf6 {[%emt 0:00:17]} 42. e5 {[%emt 0:01:49]} Ne4 {[%emt 0:00:30]} 43. c4 {[%emt 0:00:30]} Ke6 {[%emt 0:00:00]} 44. Kg2 {[%emt 0:00:00]} Kxe5 {[%emt 0:00:18]} 45. Kf3 {[%emt 0:01:08]} h6 {[%emt 0:02:08]} 46. h4 {[%emt 0:01:12]} Nf6 {[%emt 0:00:34]} 47. g5 {[%emt 0:00:03]} hxg5 {[%emt 0:01:27]} 48. hxg5 {[%emt 0:00:30]} Ne8 {[%emt 0:00:00]} 49. Ke2 {[%emt 0:03:06]} Nc7 {[%emt 0:03:10]} 50. Kd3 {[%emt 0:01:29]} Na6 {[%emt 0:00:29]} 51. g6 {[%emt 0:02:12]} Nb4+ {[%emt 0:00:15]} 52. Kc3 {[%emt 0:01:13]} Kf6 {[%emt 0:00:09]} 53. a4 {[%emt 0:01:16]} Kxg6 {[%emt 0:00:30]} 54. a5 {[%emt 0:00:00]} Be3 {[%emt 0:00:00]} 55. Kb2 {[%emt 0:00:05]} Kf5 {[%emt 0:00:49]} 56. Ka3 {[%emt 0:00:30]} Ke4 {[%emt 0:00:37]} 57. Ka4 {[%emt 0:00:22]} Kd3 {[%emt 0:00:10]} 58. Kb5 {[%emt 0:01:13]} Kc3 {[%emt 0:00:30]} 59. a6 {[%emt 0:00:02]} Nxa6 {[%emt 0:00:00]} 0-1

[Event "1st Turkish League 2017"]
[Site "Konya"]
[Date "2017.07.21"]
[Round "7"]
[White "Karacan, Can Berk"]
[Black "Dedebas, Emre Emin"]
[Result "1/2-1/2"]
[ECO "C79"]
[WhiteElo "2009"]
[BlackElo "2322"]
[Annotator "NA"]
[PlyCount "64"]
[EventType "team-tourn"]
[EventCountry "TUR"]
[SourceTitle "playchess.com"]
[Source "ChessBase"]
[SourceQuality "1"]
[TimeControl "5400+30"]

1. e4 {[%emt 0:00:30]} e5 {[%emt 0:01:00]} 2. Nf3 {[%emt 0:00:00]} Nc6 {[%emt 0:00:30]} 3. Bb5 {[%emt 0:00:00]} a6 {[%emt 0:00:30]} 4. Ba4 {[%emt 0:00:30]} Nf6 {[%emt 0:00:30]} 5. d3 {[%emt 0:00:00]} d6 {[%emt 0:00:00]} 6. O-O {[%emt 0:00:00]} b5 {[%emt 0:03:00] LiveBook: 44 Games} 7. Bb3 {[%emt 0:00:00]} Na5 {[%emt 0:00:00]} 8. Nbd2 {[%emt 0:09:00]} Nxb3 {[%emt 0:02:00]} 9. axb3 {[%emt 0:02:30]} c5 {[%emt 0:02:30]} 10. Re1 {[%emt 0:00:30]} Be7 {[%emt 0:03:30]} 11. Nf1 $11 {[%emt 0:00:00]} O-O {[%emt 0:01:30]} 12. c3 {[%emt 0:02:00]} Re8 {[%emt 0:03:30]} 13. Ng3 {[%emt 0:02:30]} h6 {[%emt 0:03:30]} 14. d4 {[%emt 0:03:30]} Qc7 {[%emt 0:21:30]} 15. d5 {[%emt 0:03:30]} Bf8 {[%emt 0:05:30]} 16. h3 {[%emt 0:00:30]} g6 {[%emt 0:07:30]} 17. Be3 {[%emt 0:02:30]} Bg7 {[%emt 0:05:30]} 18. Nh2 {[%emt 0:04:30]} h5 {[%emt 0:00:30]} 19. Nf3 {[%emt 0:05:30]} Nh7 {[%emt 0:00:30]} 20. Qd2 {[%emt 0:20:30]} Qe7 {[%emt 0:09:30]} 21. Ng5 {[%emt 0:13:30]} h4 {[%emt 0:14:36]} 22. Nf1 {[%emt 0:09:30]} Nf6 {[%emt 0:00:09]} 23. Rad1 {[%emt 0:11:59]} Bh6 {[%emt 0:04:52]} 24. Nh2 {[%emt 0:06:13]} Nh5 {[%emt 0:04:05]} 25. Ng4 {[%emt 0:00:20]} Bxg4 {[%emt 0:06:25]} 26. hxg4 {[%emt 0:00:02]} Nf6 {[%emt 0:00:40]} 27. f3 {[%emt 0:00:11]} Qd7 {[%emt 0:00:29]} 28. Nh3 {[%emt 0:00:15]} Bxe3+ {[%emt 0:00:27]} 29. Qxe3 {[%emt 0:00:30]} Nh7 {[%emt 0:00:30]} 30. Qh6 {[%emt 0:00:00]} Qe7 {[%emt 0:00:00]} 31. g5 {[%emt 0:00:00]} a5 {[%emt 0:00:19]} 32. Qxh4 {[%emt 0:00:48]} a4 {[%emt 0:00:22]} 1/2-1/2

[Event "1st Turkish League 2017"]
[Site "Konya"]
[Date "2017.07.21"]
[Round "7"]
[White "Zeydan, Salih"]
[Black "Yelligedik, Murat"]
[Result "1-0"]
[ECO "B06"]
[WhiteElo "2001"]
[BlackElo "2014"]
[Annotator "NA"]
[PlyCount "101"]
[EventType "team-tourn"]
[EventCountry "TUR"]
[SourceTitle "playchess.com"]
[Source "ChessBase"]
[SourceQuality "1"]
[TimeControl "5400+30"]

1. e4 {[%emt 0:00:30]} g6 {[%emt 0:01:00]} 2. d4 {[%emt 0:00:30]} Bg7 {[%emt 0:00:30]} 3. Nc3 {[%emt 0:00:30]} d6 {[%emt 0:00:30]} 4. Be3 {[%emt 0:00:30]} a6 {[%emt 0:00:00]} 5. a4 {[%emt 0:00:00]} b6 {[%emt 0:01:00]} 6. h3 $11 {[%emt 0:00:00] LiveBook: 11 Games} Bb7 {[%emt 0:01:30]} 7. Nf3 {[%emt 0:00:30]} e6 {[%emt 0:00:30]} 8. Qd2 {[%emt 0:02:30]} h6 {[%emt 0:00:30]} 9. Rd1 {[%emt 0:03:30]} Nd7 {[%emt 0:00:30]} 10. Bd3 {[%emt 0:04:30]} Ne7 {[%emt 0:00:30]} 11. Ne2 {[%emt 0:00:30]} Qb8 {[%emt 0:08:30]} 12. c3 {[%emt 0:02:30]} Qa7 {[%emt 0:02:30]} 13. O-O {[%emt 0:04:30]} Rc8 {[%emt 0:00:30]} 14. Ng3 {[%emt 0:03:30]} Qa8 {[%emt 0:00:30]} 15. Rfe1 {[%emt 0:01:30]} Kf8 {[%emt 0:07:30]} 16. Bb1 {[%emt 0:15:30]} Kg8 {[%emt 0:03:30]} 17. h4 {[%emt 0:03:30]} Nf6 {[%emt 0:08:30]} 18. h5 {[%emt 0:12:30]} Nxe4 {[%emt 0:12:30]} 19. Nxe4 {[%emt 0:01:30]} Bxe4 {[%emt 0:04:30]} 20. Bxe4 {[%emt 0:00:30]} Qxe4 {[%emt 0:00:30]} 21. Bg5 {[%emt 0:01:30]} Qf5 {[%emt 0:11:30]} 22. Bxe7 {[%emt 0:01:30]} g5 {[%emt 0:02:30]} 23. d5 {[%emt 0:07:30]} e5 {[%emt 0:01:30]} 24. Qe2 {[%emt 0:03:30]} Re8 {[%emt 0:07:30]} 25. Bxd6 {[%emt 0:01:30]} cxd6 {[%emt 0:00:30]} 26. Qxa6 {[%emt 0:00:00]} g4 {[%emt 0:01:30]} 27. Nd2 {[%emt 0:04:00]} Qxh5 {[%emt 0:00:00]} 28. Ne4 {[%emt 0:00:30]} Qg6 {[%emt 0:02:00]} 29. Qxb6 {[%emt 0:01:30]} Bf8 {[%emt 0:00:30]} 30. Qc6 {[%emt 0:00:30]} Rb8 {[%emt 0:01:30]} 31. b4 {[%emt 0:02:30]} h5 {[%emt 0:13:01]} 32. Qd7 {[%emt 0:01:30]} h4 {[%emt 0:00:30]} 33. Qxg4 {[%emt 0:00:30]} Qxg4 {[%emt 0:00:30]} 34. Nf6+ {[%emt 0:00:30]} Kg7 {[%emt 0:00:30]} 35. Nxg4 {[%emt 0:00:30]} Rc8 {[%emt 0:03:42]} 36. Rc1 {[%emt 0:00:30]} f5 {[%emt 0:01:25]} 37. Nh2 {[%emt 0:04:14]} Kf6 {[%emt 0:00:38]} 38. Rc2 {[%emt 0:01:02]} Rc4 {[%emt 0:01:50]} 39. a5 {[%emt 0:01:27]} Be7 {[%emt 0:00:33]} 40. Ra1 {[%emt 0:01:47]} Rb8 {[%emt 0:01:55]} 41. a6 {[%emt 0:04:27]} Bd8 {[%emt 0:01:13]} 42. a7 {[%emt 0:00:37]} Ra8 {[%emt 0:00:30]} 43. Ra6 {[%emt 0:00:00]} Ke7 {[%emt 0:00:00]} 44. Nf3 {[%emt 0:01:40]} Kd7 {[%emt 0:00:21]} 45. b5 {[%emt 0:01:20]} Rc7 {[%emt 0:01:19]} 46. b6 {[%emt 0:01:50]} Rb7 {[%emt 0:00:30]} 47. Rb2 {[%emt 0:00:09]} Kc8 {[%emt 0:00:00]} 48. Nd2 {[%emt 0:01:08]} Rd7 {[%emt 0:00:59]} 49. Nc4 {[%emt 0:00:42]} Kb7 {[%emt 0:00:25]} 50. Ra3 {[%emt 0:00:45]} Rc8 {[%emt 0:00:36]} 51. Na5+ {[%emt 0:00:43]} 1-0

[Event "1st Turkish League 2017"]
[Site "Konya"]
[Date "2017.07.21"]
[Round "7"]
[White "Gokbulut, Julia"]
[Black "Temel, Burcu Melis"]
[Result "1-0"]
[ECO "D38"]
[WhiteElo "1997"]
[BlackElo "1846"]
[Annotator "NA"]
[PlyCount "73"]
[EventType "team-tourn"]
[EventCountry "TUR"]
[SourceTitle "playchess.com"]
[Source "ChessBase"]
[SourceQuality "1"]
[TimeControl "5400+30"]

1. d4 {[%emt 0:00:30]} Nf6 {[%emt 0:01:00]} 2. c4 {[%emt 0:00:00]} e6 {[%emt 0:00:30]} 3. Nc3 {[%emt 0:00:00]} Bb4 {[%emt 0:00:30]} 4. e3 {[%emt 0:00:00]} d5 {[%emt 0:00:00]} 5. Qa4+ {[%emt 0:01:00]} Nc6 {[%emt 0:00:00]} 6. Nf3 {[%emt 0:00:30]} O-O {[%emt 0:00:30]} 7. Bd2 {[%emt 0:01:30]} Bd7 {[%emt 0:18:30]} 8. Qc2 $11 {[%emt 0:00:30] LiveBook: 36 Games} Re8 {[%emt 0:04:30]} 9. a3 {[%emt 0:03:30]} Bf8 {[%emt 0:04:30]} 10. Bd3 {[%emt 0:02:30]} dxc4 {[%emt 0:01:30]} 11. Bxc4 {[%emt 0:00:30]} Na5 {[%emt 0:02:30]} 12. Bd3 {[%emt 0:06:30]} c5 {[%emt 0:07:30]} 13. dxc5 {[%emt 0:01:30]} b6 {[%emt 0:15:30]} 14. b4 {[%emt 0:03:30]} Nb7 {[%emt 0:03:30]} 15. cxb6 {[%emt 0:01:30]} Qxb6 {[%emt 0:04:30]} 16. Ne5 {[%emt 0:02:30]} Red8 {[%emt 0:03:30]} 17. Ne4 {[%emt 0:05:30]} Nxe4 {[%emt 0:01:30]} 18. Bxe4 {[%emt 0:01:30]} f5 {[%emt 0:00:30]} 19. Nxd7 {[%emt 0:01:30]} Rxd7 {[%emt 0:00:00]} 20. Bf3 {[%emt 0:10:30]} Rad8 {[%emt 0:01:00]} 21. Rd1 {[%emt 0:11:30]} Nd6 {[%emt 0:22:16]} 22. O-O {[%emt 0:04:30]} Rc7 {[%emt 0:02:17]} 23. Qa2 {[%emt 0:04:30]} Nc4 {[%emt 0:01:21]} 24. Bc1 {[%emt 0:01:30]} Rdc8 {[%emt 0:01:05]} 25. Bb2 {[%emt 0:07:30]} a5 {[%emt 0:02:12]} 26. Bd4 {[%emt 0:00:30]} Qa6 {[%emt 0:00:22]} 27. Qb3 {[%emt 0:03:30]} Qb5 {[%emt 0:01:58]} 28. e4 {[%emt 0:07:14]} fxe4 {[%emt 0:00:30]} 29. Bxe4 {[%emt 0:00:30]} axb4 {[%emt 0:00:30]} 30. axb4 {[%emt 0:00:30]} Qxb4 {[%emt 0:00:08]} 31. Qh3 {[%emt 0:01:11]} Nd6 {[%emt 0:01:19]} 32. Qxh7+ {[%emt 0:01:18]} Kf7 {[%emt 0:00:00]} 33. Bg6+ {[%emt 0:00:42]} Ke7 {[%emt 0:00:01]} 34. Bxg7 {[%emt 0:01:23]} Bxg7 {[%emt 0:00:30]} 35. Qxg7+ {[%emt 0:00:30]} Kd8 {[%emt 0:00:00]} 36. Qe5 {[%emt 0:00:40]} Kd7 {[%emt 0:01:23]} 37. Bf7 {[%emt 0:01:00]} 1-0

[Event "1st Turkish League 2017"]
[Site "Konya"]
[Date "2017.07.21"]
[Round "7"]
[White "Kara, Yanki"]
[Black "Erdogan, Anil Berk"]
[Result "1/2-1/2"]
[ECO "D78"]
[WhiteElo "1962"]
[BlackElo "2088"]
[Annotator "NA"]
[PlyCount "66"]
[EventType "team-tourn"]
[EventCountry "TUR"]
[SourceTitle "playchess.com"]
[Source "ChessBase"]
[SourceQuality "1"]
[TimeControl "5400+30"]

1. Nf3 {[%emt 0:00:30]} Nf6 {[%emt 0:01:00]} 2. g3 {[%emt 0:00:00]} d5 {[%emt 0:00:30]} 3. Bg2 {[%emt 0:00:00]} c6 {[%emt 0:00:30]} 4. c4 {[%emt 0:00:00]} g6 $14 {[%emt 0:02:30]} 5. b3 {[%emt 0:03:00]} Bg7 {[%emt 0:07:30]} 6. O-O {[%emt 0:19:30]} Ne4 {[%emt 0:03:30]} 7. d4 {[%emt 0:00:30]} O-O {[%emt 0:02:30]} 8. Bb2 {[%emt 0:03:30]} Qb6 {[%emt 0:05:30]} 9. Nc3 {[%emt 0:06:30]} Bf5 {[%emt 0:09:30]} 10. Qc1 {[%emt 0:14:30]} Nd7 {[%emt 0:06:30]} 11. Rd1 {[%emt 0:08:30]} Rac8 {[%emt 0:06:30]} 12. e3 {[%emt 0:04:30]} Rfd8 {[%emt 0:06:30]} 13. Nh4 {[%emt 0:02:30]} Nxc3 {[%emt 0:02:30]} 14. Bxc3 {[%emt 0:01:30]} Bg4 {[%emt 0:07:30]} 15. Re1 {[%emt 0:06:30]} e5 {[%emt 0:01:30]} 16. Qd2 {[%emt 0:00:30]} exd4 {[%emt 0:02:30]} 17. exd4 {[%emt 0:00:30]} dxc4 {[%emt 0:03:30]} 18. bxc4 {[%emt 0:01:30]} Nf8 {[%emt 0:04:30]} 19. Rab1 {[%emt 0:03:30]} Qc7 {[%emt 0:04:30]} 20. Qb2 {[%emt 0:10:23]} b6 {[%emt 0:06:19]} 21. Nf3 {[%emt 0:00:48]} Be6 {[%emt 0:05:52]} 22. Bf1 {[%emt 0:01:16]} b5 {[%emt 0:01:12]} 23. Qd2 {[%emt 0:03:01]} Rd7 {[%emt 0:06:22]} 24. Ba5 {[%emt 0:01:52]} Qd6 {[%emt 0:00:44]} 25. Bb4 {[%emt 0:00:36]} Qc7 {[%emt 0:02:20]} 26. Ba5 {[%emt 0:00:32]} Qd6 {[%emt 0:00:17]} 27. Bb4 {[%emt 0:01:08]} Qb8 {[%emt 0:00:43]} 28. Bc5 {[%emt 0:00:14]} a6 {[%emt 0:00:19]} 29. a4 {[%emt 0:00:19]} Qa8 {[%emt 0:00:44]} 30. Qc3 {[%emt 0:03:17]} bxc4 {[%emt 0:01:24]} 31. Bxc4 {[%emt 0:00:20]} Rb8 {[%emt 0:00:08]} 32. Rxb8 {[%emt 0:00:56]} Qxb8 {[%emt 0:00:03]} 33. Bxa6 {[%emt 0:00:09]} Qa8 {[%emt 0:00:52]} 1/2-1/2